Workbook

Sheet Dataset
B3: Sales Data of Amigo Super Store
B5: Sales Person | C5: Product | D5: Unit Price | E5: Sales Unit (June) | F5: Sales Unit (July)
B6: Jenny | C6: Apple | D6: 3 | E6: 30000 | F6: 7500
B7: Mike | C7: Banana | D7: 2 | E7: 25000 | F7: 16000
B8: Ammy | C8: Avocado | D8: 5 | E8: 18000 | F8: 21000
B9: Ross | C9: Grapes | D9: 4 | E9: 26000 | F9: 19500
B10: Colin | C10: Strawberry | D10: 3 | E10: 15000 | F10: 25000
B11: Diego | C11: Water-melon | D11: 6 | E11: 12500 | F11: 14000
B12: Total

Sheet Autofill
B3: Sales Data of Amigo Super Store
B5: Sales Person | C5: Product | D5: Sales Unit (June) | E5: Sales Unit (July) | F5: Increase/Decrease
B6: Jenny | C6: Apple | D6: 30000 | E6: 7500 | F6: =E6-D6 -> -22500
B7: Mike | C7: Banana | D7: 25000 | E7: 16000 | F7: =E7-D7 -> -9000
B8: Ammy | C8: Avocado | D8: 18000 | E8: 21000 | F8: 3000
B9: Ross | C9: Grapes | D9: 26000 | E9: 19500 | F9: -6500
B10: Colin | C10: Strawberry | D10: 15000 | E10: 25000 | F10: 10000
B11: Diego | C11: Water-melon | D11: 12500 | E11: 14000 | F11: 1500
B12: Total

Sheet column
B3: Sales Data of Amigo Super Store)
B5: Sales Person | C5: Product | D5: Sales Unit (June) | E5: Sales Unit (July) | F5: Increase/Decrease
B6: Jenny | C6: Apple | D6: 30000 | E6: 7500 | F6: =E6-D6 -> -22500
B7: Mike | C7: Banana | D7: 25000 | E7: 16000 | F7: =E7-D7 -> -9000
B8: Ammy | C8: Avocado | D8: 18000 | E8: 21000 | F8: 3000
B9: Ross | C9: Grapes | D9: 26000 | E9: 19500 | F9: -6500
B10: Colin | C10: Strawberry | D10: 15000 | E10: 25000 | F10: 10000
B11: Diego | C11: Water-melon | D11: 12500 | E11: 14000 | F11: 1500
B12: Total

Sheet Table
B3: Sales Data of Amigo Super Store
B5: Sales Person | C5: Product | D5: Sales Unit (June) | E5: Sales Unit (July) | F5: Increase/Decrease
B6: Jenny | C6: Apple | D6: 30000 | E6: 7500 | F6: =Table1[[#This Row],[Sales Unit (July)]]-Table1[[#This Row],[Sales Unit (June)]] -> -22500
B7: Mike | C7: Banana | D7: 25000 | E7: 16000 | F7: =Table1[[#This Row],[Sales Unit (July)]]-Table1[[#This Row],[Sales Unit (June)]] -> -9000
B8: Ammy | C8: Avocado | D8: 18000 | E8: 21000 | F8: =Table1[[#This Row],[Sales Unit (July)]]-Table1[[#This Row],[Sales Unit (June)]] -> 3000
B9: Ross | C9: Grapes | D9: 26000 | E9: 19500 | F9: =Table1[[#This Row],[Sales Unit (July)]]-Table1[[#This Row],[Sales Unit (June)]] -> -6500
B10: Colin | C10: Strawberry | D10: 15000 | E10: 25000 | F10: =Table1[[#This Row],[Sales Unit (July)]]-Table1[[#This Row],[Sales Unit (June)]] -> 10000
B11: Diego | C11: Water-melon | D11: 12500 | E11: 14000 | F11: =Table1[[#This Row],[Sales Unit (July)]]-Table1[[#This Row],[Sales Unit (June)]] -> 1500
B12: Total

Sheet array
B3: Sales Data of Amigo Super Store
B5: Sales Person | C5: Product | D5: Sales Unit (June) | E5: Sales Unit (July) | F5: Increase/Decrease
B6: Jenny | C6: Apple | D6: 30000 | E6: 7500 | F6: =E6:E11-D6:D11 -> -22500
B7: Mike | C7: Banana | D7: 25000 | E7: 16000 | F7: -9000
B8: Ammy | C8: Avocado | D8: 18000 | E8: 21000 | F8: 3000
B9: Ross | C9: Grapes | D9: 26000 | E9: 19500 | F9: -6500
B10: Colin | C10: Strawberry | D10: 15000 | E10: 25000 | F10: 10000
B11: Diego | C11: Water-melon | D11: 12500 | E11: 14000 | F11: 1500
B12: Total

Sheet VBA
B3: Sales Data of Amigo Super Store
B5: Sales Person | C5: Product | D5: Sales Unit (June) | E5: Sales Unit (July) | F5: Increase or Decrease
B6: Jenny | C6: Apple | D6: 30000 | E6: 7500 | F6: =E6:E11-D6:D11 -> -22500
B7: Mike | C7: Banana | D7: 25000 | E7: 16000 | F7: -9000
B8: Ammy | C8: Avocado | D8: 18000 | E8: 21000 | F8: 3000
B9: Ross | C9: Grapes | D9: 26000 | E9: 19500 | F9: -6500
B10: Colin | C10: Strawberry | D10: 15000 | E10: 25000 | F10: 10000
B11: Diego | C11: Water-melon | D11: 12500 | E11: 14000 | F11: 1500
B12: Total

Sheet copy paste
B3: Sales Data of Amigo Super Store
B5: Sales Person | C5: Product | D5: Price (May) | E5: Price (June) | F5: Price (July) | G5: Price (Aug)
B6: Jenny | C6: Apple | D6: 3 | E6: =$D6-$D6*E$13 -> 2.64 | F6: =$D6-$D6*F$13 -> 2.76 | G6: 2.55
B7: Mike | C7: Banana | D7: 2 | E7: =$D7-$D7*E$13 -> 1.76 | F7: 1.84 | G7: 1.7
B8: Ammy | C8: Avocado | D8: 5
B9: Ross | C9: Grapes | D9: 4
B10: Colin | C10: Strawberry | D10: 3
B11: Diego | C11: Water-melon | D11: 6
D13: Discount | E13: 0.12 | F13: 0.08 | G13: 0.15
B16: Total

Sheet Ctrl+D
B3: Sales Data of Amigo Super Store
B5: Sales Person | C5: Product | D5: Price (May) | E5: Price (June) | F5: Price (July) | G5: Price (Aug)
B6: Jenny | C6: Apple | D6: 3 | E6: =$D6-$D6*$E$13 -> 2.64
B7: Mike | C7: Banana | D7: 2 | E7: 1.76
B8: Ammy | C8: Avocado | D8: 5 | E8: 4.4
B9: Ross | C9: Grapes | D9: 4 | E9: 3.52
B10: Colin | C10: Strawberry | D10: 3 | E10: 2.64
B11: Diego | C11: Water-melon | D11: 6 | E11: 5.28
D13: Discount | E13: 0.12 | F13: 0.08 | G13: 0.15
B16: Total

Sheet CTRL+R
B3: Sales Data of Amigo Super Store
B5: Sales Person | C5: Product | D5: Price (May) | E5: Price (June) | F5: Price (July) | G5: Price (Aug)
B6: Jenny | C6: Apple | D6: 3 | E6: =$D6-$D6*E$13 -> 2.64 | F6: =$D6-$D6*F$13 -> 2.76
B7: Mike | C7: Banana | D7: 2 | E7: =$D7-$D7*E$13 -> 1.76 | F7: 1.84
B8: Ammy | C8: Avocado | D8: 5 | E8: 4.4 | F8: 4.6
B9: Ross | C9: Grapes | D9: 4 | E9: 3.52 | F9: 3.68
B10: Colin | C10: Strawberry | D10: 3 | E10: 2.64 | F10: 2.76
B11: Diego | C11: Water-melon | D11: 6 | E11: 5.28 | F11: 5.52
D13: Discount | E13: 0.12 | F13: 0.08 | G13: 0.15
B16: Total

Sheet Non-adjacent
B3: Sales Data of Amigo Super Store
B5: Sales Person | C5: Product | D5: Price (May) | E5: Price (June) | F5: Price (July) | G5: Price (Aug)
B6: Jenny | C6: Apple | D6: 3 | E6: =$D6-$D6*E$13 -> 2.64 | F6: =$D6-$D6*F$13 -> 2.76 | G6: 2.55
B8: Ammy | C8: Avocado | D8: 5 | E8: =$D8-$D8*E$13 -> 4.4 | F8: 4.6 | G8: 4.25
B9: Ross | C9: Grapes | D9: 4 | E9: 3.52 | F9: 3.68 | G9: 3.4
B11: Diego | C11: Water-melon | D11: 6 | E11: =$D11-$D11*E$13 -> 5.28 | F11: 5.52 | G11: 5.1
D13: Discount | E13: 0.12 | F13: 0.08 | G13: 0.15
B16: Total

Sheet Ctrl+CLick
B3: Sales Data of Amigo Super Store
B5: Sales Person | C5: Product | D5: Price (May) | E5: Price (June) | F5: Price (July) | G5: Price (Aug)
B6: Jenny | C6: Apple | D6: 3 | E6: =$D6-$D6*E$13 -> 2.64 | F6: =$D6-$D6*F$13 -> 2.76 | G6: 2.55
B8: Ammy | C8: Avocado | D8: 5 | E8: =$D8-$D8*E$13 -> 4.4 | F8: 4.6 | G8: 4.25
B9: Ross | C9: Grapes | D9: 4 | E9: 3.52 | F9: 3.68 | G9: 3.4
B11: Diego | C11: Water-melon | D11: 6 | E11: =$D11-$D11*E$13 -> 5.28 | F11: =$D11-$D11*F$13 -> 5.52 | G11: 5.1
D13: Discount | E13: 0.12 | F13: 0.08 | G13: 0.15
C15: Average | D15: =AVERAGE(D6,D8,D9,D11) -> 4.5 | E15: =AVERAGE(E6,E8,E9,E11) -> 3.96 | F15: =AVERAGE(F6,F8,F9,F11) -> 4.14 | G15: 3.825
B18: Total

Sheet find formula
B3: Sales Data of Amigo Super Store
B5: Sales Person | C5: Product | D5: Price (May) | E5: Price (June) | F5: Price (July) | G5: Price (Aug)
B6: Jenny | C6: Apple | D6: 3 | E6: =$D6-$D6*E$13 -> 2.64 | F6: =$D6-$D6*F$13 -> 2.76 | G6: 2.55
B7: Mark | C7: - | D7: - | E7: - | F7: - | G7: -
B8: Ammy | C8: Avocado | D8: 5 | E8: =$D8-$D8*E$13 -> 4.4 | F8: 4.6 | G8: 4.25
B9: Ross | C9: Grapes | D9: 4 | E9: 3.52 | F9: 3.68 | G9: 3.4
B10: Damien | C10: - | D10: - | E10: - | F10: - | G10: -
B11: Diego | C11: Water-melon | D11: 6 | E11: =$D11-$D11*E$13 -> 5.28 | F11: =$D11-$D11*F$13 -> 5.52 | G11: 5.1
D13: Discount | E13: 0.12 | F13: 0.08 | G13: 0.15
C15: Average | D15: =AVERAGE(D6,D8,D9,D11) -> 4.5 | E15: =AVERAGE(E6,E8,E9,E11) -> 3.96 | F15: 4.14 | G15: 3.825
B18: Total

Sheet evaluate
B3: Sales Data of Amigo Super Store
B5: Sales Person | C5: Product | D5: Unit Price | E5: Status
B6: Jenny | C6: Apple | D6: 3 | E6: =IF(D6>3.5,"Costly","Cheap") -> Cheap
B7: Mike | C7: Banana | D7: 2 | E7: =IF(D7>3.5,"Costly","Cheap") -> Cheap
B8: Ammy | C8: Avocado | D8: 5 | E8: Costly
B9: Ross | C9: Grapes | D9: 4 | E9: Costly
B10: Colin | C10: Strawberry | D10: 3 | E10: Cheap
B11: Diego | C11: Water-melon | D11: 6 | E11: Costly
B12: Total
